fUST/lending_fUST_20240730
["ID","MTS","AMOUNT","RATE_DAILY","PERIOD"]
[333622822,1722291054162,-503.01291698,0.00013972,2]
[333622823,1722291054172,-500.0,0.00013972,2]
[333622824,1722291054182,-500.0,0.00013972,2]
[333622825,1722291054192,-500.0,0.00013972,2]
[333622826,1722291054202,-500.0,0.00013972,2]
[333622827,1722291054212,-151.0,0.00013972,2]
[333622828,1722291054222,-151.0,0.00013972,2]
[333622829,1722291054231,-500.0,0.00013972,2]
[333622830,1722291054242,-151.0,0.00013972,2]
[333622831,1722291054251,-500.0,0.00013972,2]
[333622832,1722291054262,-667.87,0.00013972,2]
[333622833,1722291054271,-500.0,0.00013972,2]
[333622834,1722291054281,-500.0,0.00013972,2]
[333622835,1722291054290,-542.18,0.00013972,2]
[333622836,1722291054300,-500.0,0.00013972,2]
[333622837,1722291054311,-738.71,0.00013972,2]
[333622838,1722291054320,-500.0,0.00013972,2]
[333622839,1722291054330,-500.0,0.00013972,2]
[333622840,1722291054340,-500.0,0.00013972,2]
[333622841,1722291054350,-845.84,0.00013972,2]
[333622842,1722291054360,-158.335476,0.00013972,2]
[333622843,1722291054370,-158.335476,0.00013972,2]
[333622844,1722291054379,-158.335476,0.00013972,2]
[333622845,1722291054390,-500.0,0.00013972,2]
[333622846,1722291054400,-500.0,0.00013972,2]
[333622847,1722291054409,-500.0,0.00013972,2]
[333622848,1722291054419,-500.0,0.00013972,2]
[333622849,1722291054429,-500.0,0.00013972,2]
[333622850,1722291054438,-1568.98,0.00013972,2]
[333622851,1722291054447,-500.0,0.00013972,2]
[333622852,1722291054456,-1121.22,0.00013972,2]
[333622853,1722291054466,-274.12816104,0.00013972,2]
[333622854,1722291054476,-963.89,0.00013972,2]
[333622855,1722291054485,-500.0,0.00013972,2]
[333622856,1722291054495,-500.0,0.00013972,2]
[333622857,1722291054505,-500.0,0.00013972,2]
[333622858,1722291054515,-500.0,0.00013972,2]
[333622859,1722291054524,-500.0,0.00013972,2]
[333622860,1722291054534,-500.0,0.00013972,2]
[333622861,1722291054543,-151.0,0.00013972,2]
[333622862,1722291054553,-500.0,0.00013972,2]
[333622863,1722291054563,-2439.98,0.00013972,2]
[333622864,1722291054572,-151.0,0.00013972,2]
[333622865,1722291054582,-151.0,0.00013972,2]
[333622866,1722291054591,-500.0,0.00013972,2]
[333622867,1722291054602,-500.0,0.00013972,2]
[333622868,1722291054611,-500.0,0.00013972,2]
[333622869,1722291054620,-1522.87,0.00013972,2]
[333622870,1722291054630,-612.26,0.00013972,2]
[333622871,1722291054640,-2719.03,0.00013972,2]
[333622872,1722291054650,-793.53,0.00013972,2]
[333622873,1722291054659,-151.0,0.00013972,2]
[333622874,1722291054669,-151.0,0.00013972,2]
[333622875,1722291054678,-500.0,0.00013972,2]
[333622876,1722291054688,-2279.64,0.00013972,2]
[333622877,1722291054698,-415.85294918,0.00013972,2]
[333622878,1722291054708,-2163.85,0.00013972,2]
[333622879,1722291054718,-500.0,0.00013972,2]
[333622880,1722291054727,-500.0,0.00013972,2]
[333622881,1722291054737,-644.105706,0.00013972,2]
[333622882,1722291054746,-500.0,0.00013972,2]
[333622883,1722291054756,-644.105706,0.00013972,2]
[333622884,1722291054766,-644.105706,0.00013972,2]
[333622885,1722291054776,-1329.94,0.00013972,2]
[333622886,1722291054786,-689.62,0.00013972,2]
[333622887,1722291054796,-2946.98,0.00013972,2]
[333622888,1722291054805,-500.0,0.00013972,2]
[333622889,1722291054814,-500.0,0.00013972,2]
[333622890,1722291054824,-500.0,0.00013972,2]
[333622891,1722291054833,-500.0,0.00013972,2]
[333622892,1722291054842,-500.0,0.00013972,2]
[333622893,1722291054853,-1242.87,0.00013972,2]
[333622894,1722291054862,-699.9,0.00013972,2]
[333622895,1722291054872,-500.0,0.00013972,2]
[333622896,1722291054883,-500.0,0.00013972,2]
[333622897,1722291054892,-500.0,0.00013972,2]
[333622898,1722291054903,-500.0,0.00013972,2]
[333622899,1722291054913,-500.0,0.00013972,2]
[333622900,1722291054925,-406.84752069,0.00013972,2]
[333622901,1722291054935,-500.0,0.00013972,2]
[333622902,1722291054946,-247.47930333,0.00013972,2]
[333622939,1722292234474,-300.0,9.998e-05,2]
[333622940,1722292234484,-300.0,9.998e-05,2]
[333622941,1722292234494,-404.34085405,9.999e-05,2]
[333622942,1722292234504,-156.54807141,9.999e-05,2]
[333622943,1722292234518,-156.40691398,9.999e-05,2]
[333622944,1722292234528,-157.67039442,9.999e-05,2]
[333622945,1722292234538,-428.25895853,9.999e-05,2]
[333622946,1722292234547,-600.34409866,9.999e-05,2]
[333622947,1722292234558,-403.39616838,9.999e-05,2]
[333622949,1722292234569,-156.63211711,9.999e-05,2]
[333622951,1722292234579,-157.00321085,9.999e-05,2]
[333622952,1722292234589,-154.76012181,9.999e-05,2]
[333622954,1722292234599,-663.67519992,9.999e-05,2]
[333622955,1722292234609,-155.02261108,9.999e-05,2]
[333622956,1722292234618,-154.7755664,9.999e-05,2]
[333622957,1722292234629,-201.6084897,0.00010718,2]
[333622973,1722292238184,-13509.6,0.00010718,2]
[333622977,1722292238215,-547.3820516,0.00010718,2]
[333622982,1722292238245,-5256.96464566,0.00010718,2]
[333622984,1722292238258,-5384.44481304,0.00010718,2]
[333622986,1722292238268,-166.666666,0.00010959,2]
[333622988,1722292238278,-566.73,0.00010959,2]
[333622990,1722292238288,-472.27,0.00010959,2]
[333622992,1722292238298,-420.0,0.00010998,2]
[333622994,1722292238307,-160.0,0.00010998,2]
[333622996,1722292238317,-166.666666,0.00011279,2]
[333622998,1722292238328,-250.0,0.00011296,2]
[333623000,1722292238337,-250.0,0.00011327,2]
[333623002,1722292238347,-250.0,0.00011358,2]
[333623004,1722292238356,-250.0,0.00011389,2]
[333623007,1722292238367,-250.0,0.0001142,2]
[333623009,1722292238379,-250.0,0.00011451,2]
[333623011,1722292238388,-250.0,0.00011482,2]
[333623013,1722292238399,-250.0,0.00011513,2]
[333623015,1722292238410,-250.0,0.00011544,2]
[333623017,1722292238420,-250.0,0.00011575,2]
[333623019,1722292238430,-166.666666,0.000116,2]
[333623021,1722292238440,-250.0,0.00011606,2]
[333623023,1722292238452,-250.0,0.00011637,2]
[333623025,1722292238463,-250.0,0.00011668,2]
[333623027,1722292238472,-250.0,0.00011699,2]
[333623029,1722292238584,-250.0,0.0001173,2]
[333623030,1722292238596,-250.0,0.00011761,2]
[333623031,1722292238607,-250.0,0.00011792,2]
[333623032,1722292238617,-250.0,0.00011823,2]
[333623033,1722292238628,-250.0,0.00011854,2]
[333623034,1722292238639,-250.0,0.00011885,2]
[333623035,1722292238651,-166.666666,0.00011921,2]
[333623036,1722292238662,-587.0,0.00012098,2]
[333623037,1722292238672,-166.666666,0.00012241,2]
[333623038,1722292238682,-2144.01037823,0.000129,2]
[333623039,1722292238691,-200.0,0.00012986,2]
[333623040,1722292238701,-3883.0,0.00013,2]
[333623041,1722292238711,-2067.0,0.00013,2]
[333623042,1722292238723,-153.1553041,0.00013178,2]
[333623043,1722292238732,-823.0,0.00013307,2]
[333623044,1722292238744,-418.276158,0.00013562,2]
[333623045,1722292238756,-198.8165279,0.00013598,2]
[333623046,1722292238766,-198.81652786,0.00013667,2]
[333623047,1722292238790,-317.22060204,0.00013688,2]
[333623048,1722292238811,-2147.12798362,0.00013688,2]
[333623064,1722292240410,-393.56,0.00010959,2]
[333623066,1722292240420,-26518.33950281,0.00013688,2]
[333623140,1722292244180,-196.36879843,9.999e-05,2]
[333623143,1722292244191,-829.51170157,0.00013688,2]
[333623145,1722292244203,-3300.1543449,0.00013688,2]
[333623147,1722292244215,-3925.11735342,0.00013688,2]
[333623178,1722292246443,-30484.82404094,0.00013688,2]
[333623179,1722292246453,-243.68625802,0.00013698,2]
[333623180,1722292246463,-500.0,0.00013698,2]
[333623181,1722292246473,-500.0,0.00013698,2]
[333623182,1722292246483,-500.0,0.00013698,2]
[333623183,1722292246492,-500.0,0.00013698,2]
[333623184,1722292246502,-500.0,0.00013698,2]
[333623185,1722292246511,-500.0,0.00013698,2]
[333623186,1722292246524,-500.0,0.00013698,2]
[333623187,1722292246533,-500.0,0.00013698,2]
[333623188,1722292246544,-500.0,0.00013698,2]
[333623189,1722292246554,-500.0,0.00013698,2]
[333623190,1722292246565,-500.0,0.00013698,2]
[333623191,1722292246575,-500.0,0.00013698,2]
[333623192,1722292246585,-188.57589399,0.00013698,2]
[333623193,1722292246608,-311.42410601,0.00013698,2]
[333623194,1722292246618,-500.0,0.00013698,2]
[333623195,1722292246627,-356.33661125,0.00013698,2]
[333623196,1722292246638,-500.0,0.00013698,2]
[333623197,1722292246647,-500.0,0.00013698,2]
[333623198,1722292246656,-500.0,0.00013698,2]
[333623199,1722292246665,-500.0,0.00013698,2]
[333623200,1722292246674,-500.0,0.00013698,2]
[333623201,1722292246684,-500.0,0.00013698,2]
[333623202,1722292246694,-500.0,0.00013698,2]
[333623203,1722292246703,-500.0,0.00013698,2]
[333623204,1722292246713,-500.0,0.00013698,2]
[333623205,1722292246723,-500.0,0.00013698,2]
[333623206,1722292246733,-500.0,0.00013698,2]
[333623207,1722292246742,-500.0,0.00013698,2]
[333623208,1722292246751,-257.99740934,0.00013698,2]
[333623233,1722293432299,-300.0,9.998e-05,2]
[333623235,1722293432309,-29.16322832,9.999e-05,2]
[333623237,1722293432323,-142.40310565,9.999e-05,2]
[333623239,1722293432334,-154.96701285,9.999e-05,2]
[333623242,1722293432346,-173.03012309,9.999e-05,2]
[333623243,1722293432356,-778.99945191,9.999e-05,2]
[333623245,1722293432366,-154.72922386,9.999e-05,2]
[333623247,1722293432376,-230.37770091,9.999e-05,2]
[333623248,1722293432386,-519.14870802,9.999e-05,2]
[333623249,1722293432395,-628.45453856,9.999e-05,2]
[333623250,1722293432405,-209.76156899,9.999e-05,2]
[333623251,1722293432416,-188.13767022,9.999e-05,2]
[333623252,1722293432427,-288.38381138,9.999e-05,2]
[333623253,1722293432440,-189.33829521,9.999e-05,2]
[333623254,1722293432451,-342.78895988,9.999e-05,2]
[333623255,1722293432461,-200.71599271,0.0001,2]
[333623256,1722293432470,-327.97,0.00010959,2]
[333623257,1722293432480,-273.31,0.00010959,2]
[333623258,1722293432489,-227.76,0.00010959,2]
[333623259,1722293432499,-189.8,0.00010959,2]
[333623260,1722293432510,-158.16,0.00010959,2]
[333623261,1722293432520,-617.39890325,0.00010959,2]
[333623262,1722293432536,-173.44109675,0.00010959,2]
[333623263,1722293432546,-420.0,0.00010998,2]
[333623264,1722293432557,-437.48796206,0.0001182,2]
[333623265,1722293432570,-1710.65187877,0.0001182,2]
[333623266,1722293432581,-1905.52945786,0.0001182,2]
[333623333,1722293438530,-7792.50357784,0.0001182,2]
[333623368,1722293440399,-5583.08338431,0.0001182,2]
[333623370,1722293440411,-2653.31491435,0.0001182,2]
[333623375,1722293440443,-4817.42882481,0.0001182,2]
[333623377,1722293440453,-587.0,0.00012098,2]
[333623379,1722293440462,-2091.93046874,0.000129,2]
[333623381,1722293440471,-200.0,0.00012986,2]
[333623383,1722293440481,-2579.17599571,0.00013,2]
[333623385,1722293440491,-823.0,0.00013307,2]
[333623387,1722293440500,-4258.52482485,0.00013518,2]
[333623389,1722293440510,-196.67306725,0.00013598,2]
[333623391,1722293440519,-2000.0,0.00013598,2]
[333623393,1722293440528,-196.67306722,0.00013667,2]
[333623395,1722293440538,-8668.15302738,0.00013688,2]
[333623683,1722293443375,-9035.27774087,0.00013688,2]
[333623685,1722293443387,-4490.18360412,0.00013688,2]
[333623991,1722293446416,-42545.47225643,0.00013688,2]
[333623993,1722293446427,-339.90518806,0.00013698,5]
[333623996,1722293446437,-7966.31089195,0.00013698,2]
[333623997,1722293446446,-1629.26928721,0.00013698,2]
[333624000,1722293446455,-239.87184714,0.00013698,2]
[333624002,1722293446465,-500.0,0.00013698,2]
[333624004,1722293446475,-157.31333746,0.00013698,2]
[333624006,1722293446485,-500.0,0.00013698,2]
[333624008,1722293446494,-644.57917452,0.00013698,2]
[333624010,1722293446503,-156.95300993,0.00013698,2]
[333624012,1722293446513,-218.4546097,0.00013698,2]
[333624014,1722293446522,-14948.86164883,0.00013698,2]
[333624015,1722293446532,-500.0,0.00013698,2]
[333624018,1722293446542,-500.0,0.00013698,2]
[333624020,1722293446551,-2107.09834524,0.00013698,2]
[333624022,1722293446561,-154.74467129,0.00013698,2]
[333624024,1722293446571,-500.0,0.00013698,2]
[333624026,1722293446580,-509.57344492,0.00013698,2]
[333624028,1722293446589,-170.58038062,0.00013698,2]
[333624030,1722293446599,-500.0,0.00013698,2]
[333624032,1722293446608,-500.0,0.00013698,2]
[333624034,1722293446619,-522.57150737,0.00013698,2]
[333624036,1722293446628,-904.39,0.00013698,2]
[333624038,1722293446638,-501.22756596,0.00013698,2]
[333624040,1722293446648,-500.0,0.00013698,2]
[333624042,1722293446658,-753.68,0.00013698,2]
[333624044,1722293446668,-500.0,0.00013698,2]
[333624046,1722293446677,-500.0,0.00013698,2]
[333624048,1722293446687,-405.52945786,0.00013698,2]
[333624050,1722293446696,-500.0,0.00013698,2]
[333624052,1722293446706,-500.0,0.00013698,2]
[333624054,1722293446715,-500.0,0.00013698,2]
[333624056,1722293446725,-500.0,0.00013698,2]
[333624058,1722293446734,-1462.25,0.00013698,2]
[333624060,1722293446743,-500.0,0.00013698,2]
[333624062,1722293446754,-834.74,0.00013698,2]
[333624064,1722293446764,-794.45,0.00013698,2]
[333624066,1722293446774,-500.0,0.00013698,2]
[333624068,1722293446785,-500.0,0.00013698,2]
[333624070,1722293446794,-500.0,0.00013698,2]
[333624072,1722293446803,-500.0,0.00013698,2]
[333624074,1722293446813,-500.0,0.00013698,2]
[333624076,1722293446822,-500.0,0.00013698,2]
[333624078,1722293446832,-500.0,0.00013698,2]
[333624080,1722293446841,-500.0,0.00013698,2]
[333624082,1722293446851,-500.0,0.00013698,2]
[333624084,1722293446861,-505.87608225,0.00013698,2]
[333624086,1722293446870,-500.0,0.00013698,2]
[333624088,1722293446880,-500.0,0.00013698,2]
[333624090,1722293446890,-500.0,0.00013698,2]
[333624092,1722293446899,-500.0,0.00013698,2]
[333624094,1722293446909,-500.0,0.00013698,2]
[333624096,1722293446918,-500.0,0.00013698,2]
[333624098,1722293446930,-500.0,0.00013698,2]
[333624100,1722293446940,-500.0,0.00013698,2]
[333624102,1722293446950,-224.1136796,0.00013698,2]
[333624104,1722293446960,-203.93690796,0.00013698,2]
[333624106,1722293446971,-500.0,0.00013698,2]
[333624109,1722293446980,-1000.72,0.00013698,2]
[333624111,1722293446990,-151.0,0.00013698,2]
[333624113,1722293446999,-500.0,0.00013698,2]
[333624115,1722293447008,-567.37511332,0.00013698,2]
[333624117,1722293447018,-533.69,0.00013698,2]
[333624119,1722293447027,-1120.95,0.00013698,2]
[333624121,1722293447039,-500.0,0.00013698,2]
[333624123,1722293447048,-1435.44,0.00013698,2]
[333624124,1722293447058,-500.0,0.00013698,2]
[333624126,1722293447067,-160.72996,0.00013698,2]
[333624128,1722293447077,-500.0,0.00013698,2]
[333624131,1722293447087,-500.0,0.00013698,2]
[333624133,1722293447097,-160.72996,0.00013698,2]
[333624135,1722293447106,-585.17185055,0.00013698,2]
[333624137,1722293447116,-550.23151362,0.00013698,2]
[333624139,1722293447126,-526.29495431,0.00013698,2]
[333624141,1722293447137,-500.0,0.00013698,2]
[333624143,1722293447148,-500.0,0.00013698,2]
[333624145,1722293447159,-503.58,0.00013698,2]
[333624147,1722293447170,-918.53,0.00013698,2]
[333624149,1722293447180,-500.0,0.00013698,2]
[333624151,1722293447189,-500.0,0.00013698,2]
[333624152,1722293447199,-625.66,0.00013698,2]
[333624153,1722293447209,-499.53830597,0.00013698,2]
[333624154,1722293447221,-500.0,0.00013698,2]
[333624155,1722293447230,-500.0,0.00013698,2]
[333624157,1722293447241,-500.0,0.00013698,2]
[333624159,1722293447251,-500.0,0.00013698,2]
[333624161,1722293447262,-500.0,0.00013698,2]
[333624163,1722293447272,-500.0,0.00013698,2]
[333624165,1722293447281,-500.0,0.00013698,2]
[333624167,1722293447291,-500.0,0.00013698,2]
[333624169,1722293447300,-500.0,0.00013698,2]
[333624171,1722293447309,-351.70457106,0.00013698,2]
[333624173,1722293447318,-500.0,0.00013698,2]
[333624184,1722293447408,-542.85663904,0.00013698,2]
[333624186,1722293447417,-500.0,0.00013698,2]
[333624188,1722293447427,-500.0,0.00013698,2]
[333624190,1722293447436,-500.0,0.00013698,2]
[333624192,1722293447445,-500.0,0.00013698,2]
[333624194,1722293447454,-793.9,0.00013698,2]
[333624196,1722293447464,-500.0,0.00013698,2]
[333624198,1722293447474,-500.0,0.00013698,2]
[333624200,1722293447483,-500.0,0.00013698,2]
[333624202,1722293447493,-1364.65,0.00013698,2]
[333624205,1722293447502,-500.0,0.00013698,2]
[333624207,1722293447512,-500.0,0.00013698,2]
[333624209,1722293447521,-500.0,0.00013698,2]
[333624211,1722293447530,-500.0,0.00013698,2]
[333624213,1722293447540,-500.0,0.00013698,2]
[333624215,1722293447549,-500.0,0.00013698,2]
[333624217,1722293447558,-500.0,0.00013698,2]
[333624219,1722293447567,-500.0,0.00013698,2]
[333624221,1722293447577,-500.0,0.00013698,2]
[333624223,1722293447587,-500.0,0.00013698,2]
[333624225,1722293447596,-349.80289992,0.00013698,2]
[333624227,1722293447605,-500.0,0.00013698,2]
[333624229,1722293447614,-500.0,0.00013698,2]
[333624231,1722293447624,-500.0,0.00013698,2]
[333624233,1722293447633,-500.0,0.00013698,2]
[333624235,1722293447642,-500.0,0.00013698,2]
[333624237,1722293447652,-500.0,0.00013698,2]
[333624239,1722293447661,-500.0,0.00013698,2]
[333624241,1722293447670,-500.0,0.00013698,2]
[333624243,1722293447679,-500.0,0.00013698,2]
[333624245,1722293447689,-641.78,0.00013698,2]
[333624247,1722293447699,-510.76347615,0.00013698,2]
[333624249,1722293447708,-500.0,0.00013698,2]
[333624251,1722293447718,-500.0,0.00013698,2]
[333624253,1722293447728,-1116.73,0.00013698,2]
[333624255,1722293447738,-512.06726257,0.00013698,2]
[333624257,1722293447748,-500.0,0.00013698,2]
[333624259,1722293447757,-249.43292687,0.00013698,2]
[333624262,1722293447767,-500.0,0.00013698,2]
[333624264,1722293447776,-996.91,0.00013698,2]
[333624266,1722293447786,-500.0,0.00013698,2]
[333624268,1722293447795,-500.0,0.00013698,2]
[333624270,1722293447805,-373.74386389,0.00013698,2]
[333624272,1722293447815,-500.0,0.00013698,2]
[333624274,1722293447826,-501.49133993,0.00013698,2]
[333624276,1722293447837,-1062.35,0.00013698,2]
[333624278,1722293447849,-500.0,0.00013698,2]
[333624280,1722293447858,-500.0,0.00013698,2]
[333624283,1722293447868,-500.0,0.00013698,2]
[333624285,1722293447878,-76.25830808,0.00013698,2]
[333625175,1722294632547,-300.0,9.998e-05,2]
[333625177,1722294632557,-304.99998376,9.999e-05,2]
[333625179,1722294632570,-358.67521616,9.999e-05,2]
[333625181,1722294632580,-163.28779954,9.999e-05,2]
[333625182,1722294632590,-154.72922386,9.999e-05,2]
[333625183,1722294632600,-568.08421519,9.999e-05,2]
[333625184,1722294632612,-154.76012181,9.999e-05,2]
[333625185,1722294632622,-496.5675832,9.999e-05,2]
[333625186,1722294632636,-154.72922386,9.999e-05,2]
[333625187,1722294632645,-205.998322,9.999e-05,2]
[333625188,1722294632654,-209.96596802,9.999e-05,2]
[333625190,1722294632664,-156.65133576,9.999e-05,2]
[333625192,1722294632674,-432.12224137,9.999e-05,2]
[333625194,1722294632683,-285.14370431,9.999e-05,2]
[333625196,1722294632692,-61.79374477,9.999e-05,2]
[333625199,1722294632704,-93.85640506,9.999e-05,2]
[333625201,1722294632713,-196.16518014,9.999e-05,2]
[333625203,1722294632722,-328.21948819,9.999e-05,2]
[333625204,1722294632731,-429.77318836,9.999e-05,2]
[333625205,1722294632741,-307.99950733,9.999e-05,2]
[333625206,1722294632750,-188.00989658,9.999e-05,2]
[333625207,1722294632760,-288.18607124,9.999e-05,2]
[333625208,1722294632770,-182.55785908,9.999e-05,2]
[333625209,1722294632780,-420.0,0.00010998,2]
[333625210,1722294632790,-6733.18966663,0.00011578,2]
[333625211,1722294632801,-466.0,0.00011578,2]
[333625212,1722294632813,-1722.19903919,0.00011578,2]
[333625213,1722294632826,-1008.66608802,0.00011578,2]
[333625245,1722294638825,-510.94687324,0.00011578,2]
[333625246,1722294638918,-3836.16208032,0.00011578,2]
[333625247,1722294638931,-10452.434109,0.00011578,2]
[333625248,1722294638943,-170.4021436,0.00011578,2]
[333625249,1722294638953,-157.590386,0.00011964,2]
[333625250,1722294638963,-157.590386,0.00012001,2]
[333625251,1722294638972,-157.590386,0.00012038,2]
[333625252,1722294638982,-157.590386,0.00012075,2]
[333625253,1722294638992,-587.0,0.00012098,2]
[333625254,1722294639001,-157.590386,0.00012111,2]
[333625255,1722294639010,-157.590386,0.00012148,2]
[333625256,1722294639020,-157.590386,0.00012185,2]
[333625257,1722294639030,-157.590386,0.00012221,2]
[333625258,1722294639039,-157.590386,0.00012258,2]
[333625259,1722294639049,-157.590386,0.00012295,2]
[333625260,1722294639058,-157.590386,0.00012331,2]
[333625261,1722294639068,-157.590386,0.00012368,2]
[333625262,1722294639078,-108.2120851,0.00012405,2]
[333625289,1722294640743,-49.3783009,0.00012405,2]
[333625290,1722294640755,-157.590386,0.00012441,2]
[333625291,1722294640767,-157.590386,0.00012478,2]
[333625292,1722294640778,-157.590386,0.00012515,2]
[333625293,1722294640789,-157.590386,0.00012551,2]
[333625294,1722294640800,-157.590386,0.00012588,2]
[333625295,1722294640811,-588.82,0.00012972,2]
[333625296,1722294640822,-200.0,0.00012986,2]
[333625297,1722294640832,-823.0,0.00013307,2]
[333625298,1722294640841,-306.7359293,0.000134,2]
[333625299,1722294640851,-5309.48206098,0.00013465,2]
[333625300,1722294640860,-350.15329186,0.00013598,2]
[333625301,1722294640870,-500.0,0.00013598,2]
[333625302,1722294640879,-350.15329184,0.00013667,2]
[333625303,1722294640889,-70686.5007728,0.00013688,2]
[333625304,1722294640987,-13488.57465671,0.00013698,5]
[333625305,1722294641023,-1180.79074834,0.00013698,2]
[333625306,1722294641032,-1629.26928721,0.00013698,2]
[333625307,1722294641043,-503.48196272,0.00013698,2]
[333625308,1722294641053,-157.31333746,0.00013698,2]
[333625309,1722294641062,-500.0,0.00013698,2]
[333625310,1722294641071,-1699.19579432,0.00013698,2]
[333625311,1722294641081,-7966.31089195,0.00013698,2]
[333625312,1722294641091,-500.0,0.00013698,2]
[333625313,1722294641101,-151.87436407,0.00013698,2]
[333625314,1722294641110,-151.0,0.00013698,2]
[333625315,1722294641120,-151.0,0.00013698,2]
[333625316,1722294641129,-781.66,0.00013698,2]
[333625317,1722294641138,-500.0,0.00013698,2]
[333625318,1722294641148,-500.0,0.00013698,2]
[333625319,1722294641158,-500.0,0.00013698,2]
[333625320,1722294641167,-500.0,0.00013698,2]
[333625321,1722294641176,-500.0,0.00013698,2]
[333625322,1722294641186,-500.0,0.00013698,2]
[333625323,1722294641195,-500.0,0.00013698,2]
[333625324,1722294641205,-500.0,0.00013698,2]
[333625325,1722294641214,-500.0,0.00013698,2]
[333625326,1722294641224,-500.0,0.00013698,2]
[333625327,1722294641233,-500.0,0.00013698,2]
[333625328,1722294641243,-500.0,0.00013698,2]
[333625329,1722294641252,-500.0,0.00013698,2]
[333625330,1722294641261,-500.0,0.00013698,2]
[333625331,1722294641270,-500.0,0.00013698,2]
[333625332,1722294641279,-500.0,0.00013698,2]
[333625333,1722294641289,-1091.03,0.00013698,2]
[333625334,1722294641300,-500.0,0.00013698,2]
[333625335,1722294641309,-500.0,0.00013698,2]
[333625336,1722294641319,-500.0,0.00013698,2]
[333625337,1722294641329,-228.22718863,0.00013698,2]
[333625338,1722294641339,-305.64838923,0.00013698,2]
[333625339,1722294641348,-507.9354698,0.00013698,2]
[333625340,1722294641357,-500.0,0.00013698,2]
[333625341,1722294641367,-500.0,0.00013698,2]
[333625342,1722294641376,-500.0,0.00013698,2]
[333625343,1722294641385,-500.0,0.00013698,2]
[333625344,1722294641394,-500.0,0.00013698,2]
[333625345,1722294641403,-500.0,0.00013698,2]
[333625346,1722294641414,-175.3812205,0.00013698,2]
[333625347,1722294641423,-500.0,0.00013698,2]
[333625348,1722294641433,-500.0,0.00013698,2]
[333625349,1722294641443,-500.0,0.00013698,2]
[333625350,1722294641452,-500.0,0.00013698,2]
[333625351,1722294641462,-500.0,0.00013698,2]
[333625352,1722294641471,-500.0,0.00013698,2]
[333625353,1722294641482,-500.0,0.00013698,2]
[333625354,1722294641491,-500.0,0.00013698,2]
[333625355,1722294641501,-500.0,0.00013698,2]
[333625356,1722294641510,-544.54,0.00013698,2]
[333625357,1722294641520,-500.0,0.00013698,2]
[333625358,1722294641529,-544.19198019,0.00013698,2]
[333625359,1722294641539,-500.0,0.00013698,2]
[333625360,1722294641550,-500.0,0.00013698,2]
[333625361,1722294641561,-500.0,0.00013698,2]
[333625362,1722294641570,-500.0,0.00013698,2]
[333625363,1722294641579,-500.0,0.00013698,2]
[333625364,1722294641589,-500.0,0.00013698,2]
[333625365,1722294641599,-500.0,0.00013698,2]
[333625366,1722294641609,-500.0,0.00013698,2]
[333625367,1722294641619,-500.0,0.00013698,2]
[333625368,1722294641632,-1466.61,0.00013698,2]
[333625369,1722294641642,-151.0,0.00013698,2]
[333625370,1722294641652,-500.0,0.00013698,2]
[333625371,1722294641661,-500.0,0.00013698,2]
[333625372,1722294641671,-500.0,0.00013698,2]
[333625373,1722294641680,-547.02724119,0.00013698,2]
[333625374,1722294641690,-500.0,0.00013698,2]
[333625375,1722294641700,-991.65,0.00013698,2]
[333625376,1722294641711,-500.0,0.00013698,2]
[333625377,1722294641720,-500.0,0.00013698,2]